[Event "Titled Tuesday Blitz June 13 Early 2023"]
[White "Safin, Robert"]
[Black "Yeletsky, Ivan"]
[WhiteFideId "34189120"]
[BlackFideId "24180327"]
[WhiteElo "2341"]
[BlackElo "2380"]
[Result "0-1"]
[Round "10"]
[TimeControl "180+2"]
[Date "2023.06.13"]
[WhiteClock "0:00:00"]
[BlackClock "0:00:10"]
[Board "23"]

1. e4 {[%clk 0:03:00]}  e5 {[%clk 0:02:59]} 2. Nf3 {[%clk 0:03:00]}  Nf6 {[%clk 0:02:59]} 3. d4 {[%clk 0:02:58]}  Nxe4 {[%clk 0:02:58]} 4. Bd3 {[%clk 0:02:57]}  d5 {[%clk 0:02:59]} 5. Nxe5 {[%clk 0:02:58]}  Nd7 {[%clk 0:02:58]} 6. Nxd7 {[%clk 0:02:57]}  Bxd7 {[%clk 0:02:59]} 7. O-O {[%clk 0:02:58]}  Qf6 {[%clk 0:02:56]} 8. c3 {[%clk 0:02:28]}  O-O-O {[%clk 0:02:44]} 9. Nd2 {[%clk 0:02:29]}  Bd6 {[%clk 0:02:43]} 10. Bxe4 {[%clk 0:02:13]}  dxe4 {[%clk 0:02:43]} 11. Nxe4 {[%clk 0:02:14]}  Bxh2+ {[%clk 0:02:42]} 12. Kxh2 {[%clk 0:02:15]}  Qh4+ {[%clk 0:02:43]} 13. Kg1 {[%clk 0:02:15]}  Qxe4 {[%clk 0:02:44]} 14. Re1 {[%clk 0:02:14]}  Qg6 {[%clk 0:02:34]} 15. Qf3 {[%clk 0:01:59]}  Bc6 {[%clk 0:02:25]} 16. Qg3 {[%clk 0:01:59]}  Qxg3 {[%clk 0:02:25]} 17. fxg3 {[%clk 0:01:59]}  h5 {[%clk 0:02:18]} 18. Kf2 {[%clk 0:01:53]}  Rd6 {[%clk 0:02:14]} 19. Re5 {[%clk 0:01:42]}  Rf6+ {[%clk 0:01:59]} 20. Bf4 {[%clk 0:01:41]}  h4 {[%clk 0:01:59]} 21. Rg5 {[%clk 0:01:33]}  g6 {[%clk 0:01:43]} 22. d5 {[%clk 0:01:05]}  Bd7 {[%clk 0:01:33]} 23. Re1 {[%clk 0:00:42]}  h3 {[%clk 0:00:58]} 24. gxh3 {[%clk 0:00:30]}  Rxh3 {[%clk 0:00:59]} 25. Kg2 {[%clk 0:00:26]}  Ra6 {[%clk 0:00:53]} 26. Re7 {[%clk 0:00:19]}  Rh7 {[%clk 0:00:47]} 27. a3 {[%clk 0:00:15]}  Rb6 {[%clk 0:00:41]} 28. Bc1 {[%clk 0:00:11]}  Kd8 {[%clk 0:00:37]} 29. Re1 {[%clk 0:00:10]}  Bh3+ {[%clk 0:00:22]} 30. Kf2 {[%clk 0:00:08]}  Bf5 {[%clk 0:00:23]} 31. g4 {[%clk 0:00:06]}  f6 {[%clk 0:00:13]} 32. gxf5 {[%clk 0:00:05]}  fxg5 {[%clk 0:00:14]} 33. Bxg5+ {[%clk 0:00:03]}  Kd7 {[%clk 0:00:15]} 34. fxg6 {[%clk 0:00:03]}  Rxb2+ {[%clk 0:00:11]} 35. Kf3 {[%clk 0:00:02]}  Rg7 {[%clk 0:00:11]} 36. Re6 {[%clk 0:00:01]}  Rb6 {[%clk 0:00:11]} 37. Bh6 {[%clk 0:00:00]}  Rxg6 {[%clk 0:00:10]} 0-1


[Site "https://www.chess.com"]

[Event "Titled Tuesday Blitz June 13 Early 2023"]
[White "Tari, Aryan"]
[Black "Vlassov, Nikolai"]
[WhiteFideId "1510045"]
[BlackFideId "4103360"]
[WhiteElo "2586"]
[BlackElo "2324"]
[Result "0-1"]
[Round "10"]
[TimeControl "180+2"]
[Date "2023.06.13"]
[WhiteClock "0:00:00"]
[BlackClock "0:00:02"]
[Board "25"]

1. c4 {[%clk 0:03:00]}  e5 {[%clk 0:02:59]} 2. Nc3 {[%clk 0:02:57]}  Nf6 {[%clk 0:02:59]} 3. Nf3 {[%clk 0:02:57]}  e4 {[%clk 0:02:58]} 4. Ng5 {[%clk 0:02:57]}  c6 {[%clk 0:02:58]} 5. Qa4 {[%clk 0:02:54]}  b5 {[%clk 0:02:51]} 6. cxb5 {[%clk 0:02:54]}  d5 {[%clk 0:02:51]} 7. bxc6 {[%clk 0:02:54]}  Qb6 {[%clk 0:02:36]} 8. e3 {[%clk 0:02:36]}  Nxc6 {[%clk 0:02:21]} 9. Nh3 {[%clk 0:02:17]}  Bd6 {[%clk 0:02:13]} 10. Qb5 {[%clk 0:01:53]}  Qxb5 {[%clk 0:01:27]} 11. Bxb5 {[%clk 0:01:46]}  Bd7 {[%clk 0:01:26]} 12. O-O {[%clk 0:01:36]}  O-O {[%clk 0:01:25]} 13. f3 {[%clk 0:01:34]}  exf3 {[%clk 0:01:15]} 14. Rxf3 {[%clk 0:01:35]}  Ne5 {[%clk 0:01:12]} 15. Rf1 {[%clk 0:01:33]}  Bxh3 {[%clk 0:01:09]} 16. gxh3 {[%clk 0:01:32]}  Rab8 {[%clk 0:01:04]} 17. Be2 {[%clk 0:01:26]}  d4 {[%clk 0:01:03]} 18. exd4 {[%clk 0:01:08]}  Nc6 {[%clk 0:01:01]} 19. Nb5 {[%clk 0:01:09]}  Bb4 {[%clk 0:00:55]} 20. Bf3 {[%clk 0:00:57]}  Rfc8 {[%clk 0:00:37]} 21. Bxc6 {[%clk 0:00:50]}  Rxc6 {[%clk 0:00:37]} 22. Nc3 {[%clk 0:00:51]}  Rd6 {[%clk 0:00:31]} 23. d3 {[%clk 0:00:28]}  Rxd4 {[%clk 0:00:27]} 24. Be3 {[%clk 0:00:28]}  Rxd3 {[%clk 0:00:27]} 25. Bxa7 {[%clk 0:00:28]}  Ra8 {[%clk 0:00:20]} 26. Bb6 {[%clk 0:00:25]}  Rxh3 {[%clk 0:00:12]} 27. Bd4 {[%clk 0:00:21]}  Ng4 {[%clk 0:00:09]} 28. Nd5 {[%clk 0:00:05]}  Bd6 {[%clk 0:00:08]} 29. Kg2 {[%clk 0:00:04]}  Rxh2+ {[%clk 0:00:08]} 30. Kf3 {[%clk 0:00:05]}  Ne5+ {[%clk 0:00:08]} 31. Ke3 {[%clk 0:00:03]}  Nc4+ {[%clk 0:00:08]} 32. Kd3 {[%clk 0:00:03]}  Nxb2+ {[%clk 0:00:08]} 33. Bxb2 {[%clk 0:00:03]}  Rxb2 {[%clk 0:00:08]} 34. a4 {[%clk 0:00:04]}  f6 {[%clk 0:00:06]} 35. a5 {[%clk 0:00:04]}  Kf7 {[%clk 0:00:06]} 36. Nb6 {[%clk 0:00:03]}  Ra6 {[%clk 0:00:05]} 37. Nc4 {[%clk 0:00:03]}  Rb3+ {[%clk 0:00:03]} 38. Kd4 {[%clk 0:00:04]}  Rb4 {[%clk 0:00:03]} 39. Kd5 {[%clk 0:00:04]}  Be7 {[%clk 0:00:03]} 40. Ne5+ {[%clk 0:00:04]}  Ke8 {[%clk 0:00:03]} 41. Nc6 {[%clk 0:00:05]}  Rb5+ {[%clk 0:00:03]} 42. Kc4 {[%clk 0:00:04]}  Rc5+ {[%clk 0:00:03]} 43. Kd4 {[%clk 0:00:05]}  Rcxc6 {[%clk 0:00:04]} 44. Rfb1 {[%clk 0:00:06]}  Rd6+ {[%clk 0:00:04]} 45. Kc4 {[%clk 0:00:06]}  Kf7 {[%clk 0:00:05]} 46. Kb5 {[%clk 0:00:07]}  Ra8 {[%clk 0:00:04]} 47. a6 {[%clk 0:00:07]}  Rdxa6 {[%clk 0:00:03]} 48. Rxa6 {[%clk 0:00:07]}  Rxa6 {[%clk 0:00:04]} 49. Kxa6 {[%clk 0:00:08]}  f5 {[%clk 0:00:04]} 50. Kb5 {[%clk 0:00:09]}  g5 {[%clk 0:00:04]} 51. Kc4 {[%clk 0:00:10]}  h5 {[%clk 0:00:04]} 52. Kd3 {[%clk 0:00:09]}  h4 {[%clk 0:00:04]} 53. Ke3 {[%clk 0:00:08]}  g4 {[%clk 0:00:03]} 54. Kf4 {[%clk 0:00:08]}  Kg6 {[%clk 0:00:03]} 55. Rb6+ {[%clk 0:00:08]}  Bf6 {[%clk 0:00:04]} 56. Rb8 {[%clk 0:00:08]}  h3 {[%clk 0:00:04]} 57. Rg8+ {[%clk 0:00:05]}  Bg7 {[%clk 0:00:04]} 58. Ra8 {[%clk 0:00:05]}  h2 {[%clk 0:00:03]} 59. Ra6+ {[%clk 0:00:00]}  Bf6 {[%clk 0:00:02]} 0-1


[Site "https://www.chess.com"]

[Event "Titled Tuesday Blitz June 13 Early 2023"]
[White "Ivanchuk, Vasyl"]
[Black "Miranda, Rafael"]
[WhiteFideId "14100010"]
[BlackFideId "130990"]
[WhiteElo "2710"]
[BlackElo "2204"]
[Result "1-0"]
[Round "10"]
[TimeControl "180+2"]
[Date "2023.06.13"]
[WhiteClock "0:01:49"]
[BlackClock "0:00:13"]
[Board "26"]

1. c4 {[%clk 0:02:59]}  c5 {[%clk 0:02:59]} 2. Nc3 {[%clk 0:02:59]}  Nc6 {[%clk 0:02:58]} 3. Nf3 {[%clk 0:02:59]}  g6 {[%clk 0:02:53]} 4. e3 {[%clk 0:02:58]}  Nf6 {[%clk 0:02:53]} 5. d4 {[%clk 0:02:58]}  cxd4 {[%clk 0:02:54]} 6. exd4 {[%clk 0:02:58]}  d5 {[%clk 0:02:54]} 7. Be2 {[%clk 0:02:54]}  Bg7 {[%clk 0:02:53]} 8. O-O {[%clk 0:02:54]}  O-O {[%clk 0:02:54]} 9. Bf4 {[%clk 0:02:55]}  b6 {[%clk 0:02:54]} 10. Ne5 {[%clk 0:02:54]}  Bb7 {[%clk 0:02:54]} 11. Bf3 {[%clk 0:02:54]}  Rc8 {[%clk 0:02:22]} 12. Nxd5 {[%clk 0:02:50]}  Nxd5 {[%clk 0:02:13]} 13. Bxd5 {[%clk 0:02:50]}  e6 {[%clk 0:02:08]} 14. Bxc6 {[%clk 0:02:32]}  Bxc6 {[%clk 0:02:08]} 15. b3 {[%clk 0:02:29]}  Bb7 {[%clk 0:02:07]} 16. Re1 {[%clk 0:02:22]}  Re8 {[%clk 0:01:40]} 17. Rc1 {[%clk 0:02:19]}  Qe7 {[%clk 0:01:37]} 18. Rc2 {[%clk 0:02:15]}  Rcd8 {[%clk 0:01:36]} 19. Rd2 {[%clk 0:02:15]}  Ba8 {[%clk 0:01:29]} 20. f3 {[%clk 0:02:11]}  Qa3 {[%clk 0:01:27]} 21. Ng4 {[%clk 0:02:02]}  Rd7 {[%clk 0:01:10]} 22. Bg5 {[%clk 0:01:56]}  Kh8 {[%clk 0:00:40]} 23. Nf6 {[%clk 0:01:55]}  Qa5 {[%clk 0:00:13]} 24. Re5 {[%clk 0:01:49]} 1-0


[Site "https://www.chess.com"]

[Event "Titled Tuesday Blitz June 13 Early 2023"]
[White "Timofeev, Artyom"]
[Black "Ibadov, Dashgyn"]
[WhiteFideId "4140419"]
[BlackFideId "24107514"]
[WhiteElo "2570"]
[BlackElo "2208"]
[Result "1-0"]
[Round "10"]
[TimeControl "180+2"]
[Date "2023.06.13"]
[WhiteClock "0:00:51"]
[BlackClock "0:00:00"]
[Board "27"]

1. c4 {[%clk 0:03:00]}  Nf6 {[%clk 0:02:59]} 2. Nc3 {[%clk 0:03:00]}  c5 {[%clk 0:02:59]} 3. Nf3 {[%clk 0:02:59]}  e6 {[%clk 0:02:59]} 4. e4 {[%clk 0:02:59]}  d6 {[%clk 0:02:58]} 5. d4 {[%clk 0:02:58]}  cxd4 {[%clk 0:02:55]} 6. Nxd4 {[%clk 0:02:58]}  a6 {[%clk 0:02:52]} 7. g3 {[%clk 0:02:57]}  b6 {[%clk 0:02:50]} 8. Bg2 {[%clk 0:02:57]}  Bb7 {[%clk 0:02:50]} 9. O-O {[%clk 0:02:57]}  Qc7 {[%clk 0:02:49]} 10. b3 {[%clk 0:02:51]}  Be7 {[%clk 0:02:47]} 11. Be3 {[%clk 0:02:44]}  Nbd7 {[%clk 0:02:46]} 12. Rc1 {[%clk 0:02:44]}  O-O {[%clk 0:02:34]} 13. h3 {[%clk 0:02:37]}  Rac8 {[%clk 0:02:31]} 14. Re1 {[%clk 0:02:29]}  Qb8 {[%clk 0:02:30]} 15. g4 {[%clk 0:02:25]}  Nc5 {[%clk 0:02:22]} 16. f3 {[%clk 0:02:25]}  Rfe8 {[%clk 0:02:20]} 17. Bf2 {[%clk 0:02:24]}  Bf8 {[%clk 0:02:13]} 18. h4 {[%clk 0:02:23]}  d5 {[%clk 0:02:01]} 19. e5 {[%clk 0:02:13]}  Nfd7 {[%clk 0:01:51]} 20. f4 {[%clk 0:02:12]}  dxc4 {[%clk 0:01:43]} 21. bxc4 {[%clk 0:02:11]}  Bxg2 {[%clk 0:01:42]} 22. Kxg2 {[%clk 0:02:12]}  Qb7+ {[%clk 0:01:39]} 23. Kh2 {[%clk 0:02:02]}  Red8 {[%clk 0:01:38]} 24. Qe2 {[%clk 0:02:01]}  Nb8 {[%clk 0:01:12]} 25. Rcd1 {[%clk 0:02:00]}  Nc6 {[%clk 0:01:01]} 26. Nb3 {[%clk 0:02:00]}  Nxb3 {[%clk 0:00:46]} 27. axb3 {[%clk 0:01:59]}  Na5 {[%clk 0:00:46]} 28. Ne4 {[%clk 0:01:51]}  Nxb3 {[%clk 0:00:42]} 29. Rxd8 {[%clk 0:01:34]}  Rxd8 {[%clk 0:00:41]} 30. Qb2 {[%clk 0:01:35]}  Rd3 {[%clk 0:00:18]} 31. f5 {[%clk 0:01:18]}  exf5 {[%clk 0:00:13]} 32. gxf5 {[%clk 0:01:17]}  Qc7 {[%clk 0:00:13]} 33. Bg3 {[%clk 0:01:13]}  Qxc4 {[%clk 0:00:13]} 34. e6 {[%clk 0:01:00]}  fxe6 {[%clk 0:00:12]} 35. fxe6 {[%clk 0:01:00]}  Be7 {[%clk 0:00:11]} 36. Qe5 {[%clk 0:00:56]}  Qc2+ {[%clk 0:00:07]} 37. Kh3 {[%clk 0:00:55]}  Rd8 {[%clk 0:00:04]} 38. Rf1 {[%clk 0:00:52]}  Qe2 {[%clk 0:00:00]} 39. Rf7 {[%clk 0:00:51]} 1-0


[Site "https://www.chess.com"]

[Event "Titled Tuesday Blitz June 13 Early 2023"]
[White "ArtemDyachuk"]
[Black "Ilamparthi A R"]
[BlackFideId "45015775"]
[WhiteElo "2634"]
[BlackElo "2348"]
[Result "0-1"]
[Round "10"]
[TimeControl "180+2"]
[Date "2023.06.13"]
[WhiteClock "0:00:18"]
[BlackClock "0:00:51"]
[Board "28"]

1. Nf3 {[%clk 0:02:57]}  d5 {[%clk 0:02:55]} 2. e3 {[%clk 0:02:56]}  g6 {[%clk 0:02:49]} 3. c4 {[%clk 0:02:54]}  c6 {[%clk 0:02:48]} 4. Nc3 {[%clk 0:02:50]}  Bg7 {[%clk 0:02:48]} 5. Qb3 {[%clk 0:02:45]}  Nf6 {[%clk 0:02:46]} 6. cxd5 {[%clk 0:02:43]}  cxd5 {[%clk 0:02:44]} 7. Bb5+ {[%clk 0:02:43]}  Nc6 {[%clk 0:02:26]} 8. Ne5 {[%clk 0:02:42]}  O-O {[%clk 0:02:27]} 9. Nxc6 {[%clk 0:02:29]}  bxc6 {[%clk 0:02:28]} 10. Bxc6 {[%clk 0:02:30]}  Ba6 {[%clk 0:02:27]} 11. Bxa8 {[%clk 0:02:24]}  Qxa8 {[%clk 0:02:28]} 12. Qa4 {[%clk 0:02:23]}  Bd3 {[%clk 0:02:23]} 13. Qd4 {[%clk 0:02:19]}  Bc4 {[%clk 0:02:23]} 14. Qc5 {[%clk 0:02:06]}  Rc8 {[%clk 0:02:20]} 15. Qa3 {[%clk 0:02:05]}  d4 {[%clk 0:02:19]} 16. d3 {[%clk 0:01:25]}  Qxg2 {[%clk 0:02:15]} 17. Rf1 {[%clk 0:01:24]}  Bxd3 {[%clk 0:02:00]} 18. Ne2 {[%clk 0:01:23]}  Bxe2 {[%clk 0:01:48]} 19. Kxe2 {[%clk 0:01:23]}  Rc2+ {[%clk 0:01:49]} 20. Kd1 {[%clk 0:01:23]}  Rxc1+ {[%clk 0:01:33]} 21. Rxc1 {[%clk 0:01:15]}  Qxf1+ {[%clk 0:01:34]} 22. Kc2 {[%clk 0:01:16]}  Qxf2+ {[%clk 0:01:32]} 23. Kb1 {[%clk 0:01:16]}  dxe3 {[%clk 0:01:20]} 24. Qxe7 {[%clk 0:00:53]}  h5 {[%clk 0:01:14]} 25. Qxa7 {[%clk 0:00:48]}  Ne4 {[%clk 0:01:05]} 26. Qb7 {[%clk 0:00:35]}  e2 {[%clk 0:00:52]} 27. Qa8+ {[%clk 0:00:26]}  Kh7 {[%clk 0:00:51]} 28. Qa5 {[%clk 0:00:18]}  e1=Q {[%clk 0:00:51]} 0-1


[Site "https://www.chess.com"]

[Event "Titled Tuesday Blitz June 13 Early 2023"]
[White "Stribuk, Artiom"]
[Black "Nagare Kaivalya Sandip"]
[WhiteFideId "13515659"]
[BlackFideId "25957929"]
[WhiteElo "2303"]
[BlackElo "2024"]
[Result "1-0"]
[Round "10"]
[TimeControl "180+2"]
[Date "2023.06.13"]
[WhiteClock "0:00:27"]
[BlackClock "0:00:08"]
[Board "29"]

1. d4 {[%clk 0:03:00]}  Nf6 {[%clk 0:02:59]} 2. c4 {[%clk 0:03:00]}  e6 {[%clk 0:03:00]} 3. g3 {[%clk 0:02:59]}  Bb4+ {[%clk 0:02:56]} 4. Bd2 {[%clk 0:02:56]}  Qe7 {[%clk 0:02:57]} 5. Bg2 {[%clk 0:02:55]}  Nc6 {[%clk 0:02:56]} 6. e3 {[%clk 0:02:51]}  O-O {[%clk 0:02:53]} 7. Ne2 {[%clk 0:02:50]}  d5 {[%clk 0:02:50]} 8. O-O {[%clk 0:02:39]}  dxc4 {[%clk 0:02:38]} 9. a3 {[%clk 0:02:39]}  Bd6 {[%clk 0:02:34]} 10. f4 {[%clk 0:02:33]}  Qd8 {[%clk 0:02:24]} 11. Qc2 {[%clk 0:02:28]}  Rb8 {[%clk 0:02:18]} 12. Qxc4 {[%clk 0:02:28]}  Nd5 {[%clk 0:02:04]} 13. e4 {[%clk 0:02:08]}  Nb6 {[%clk 0:02:03]} 14. Qd3 {[%clk 0:02:08]}  e5 {[%clk 0:01:52]} 15. d5 {[%clk 0:01:51]}  Bg4 {[%clk 0:01:49]} 16. Nbc3 {[%clk 0:01:48]}  Na5 {[%clk 0:01:40]} 17. h3 {[%clk 0:01:35]}  Bd7 {[%clk 0:01:34]} 18. f5 {[%clk 0:01:30]}  f6 {[%clk 0:01:31]} 19. Rad1 {[%clk 0:01:22]}  Nb3 {[%clk 0:01:20]} 20. Be3 {[%clk 0:01:20]}  a5 {[%clk 0:01:16]} 21. g4 {[%clk 0:01:19]}  Nc5 {[%clk 0:01:11]} 22. Qc2 {[%clk 0:01:13]}  Nc4 {[%clk 0:01:07]} 23. Bf2 {[%clk 0:01:10]}  a4 {[%clk 0:01:01]} 24. Ng3 {[%clk 0:01:06]}  b5 {[%clk 0:00:50]} 25. Na2 {[%clk 0:01:06]}  Nb3 {[%clk 0:00:47]} 26. Ne2 {[%clk 0:00:59]}  Qe7 {[%clk 0:00:46]} 27. Kh2 {[%clk 0:00:57]}  Bc5 {[%clk 0:00:44]} 28. Rd3 {[%clk 0:00:46]}  Bxf2 {[%clk 0:00:43]} 29. Rxf2 {[%clk 0:00:46]}  Qc5 {[%clk 0:00:41]} 30. Nec3 {[%clk 0:00:44]}  Nd4 {[%clk 0:00:33]} 31. Qd1 {[%clk 0:00:38]}  g5 {[%clk 0:00:25]} 32. fxg6 {[%clk 0:00:35]}  hxg6 {[%clk 0:00:25]} 33. Qf1 {[%clk 0:00:34]}  Qe7 {[%clk 0:00:24]} 34. Nb4 {[%clk 0:00:34]}  f5 {[%clk 0:00:20]} 35. gxf5 {[%clk 0:00:33]}  gxf5 {[%clk 0:00:21]} 36. Rg3+ {[%clk 0:00:33]}  Kh7 {[%clk 0:00:20]} 37. exf5 {[%clk 0:00:33]}  Bxf5 {[%clk 0:00:18]} 38. Ne4 {[%clk 0:00:33]}  Rb6 {[%clk 0:00:15]} 39. Nc6 {[%clk 0:00:26]}  Nxc6 {[%clk 0:00:08]} 40. dxc6 {[%clk 0:00:27]} 1-0


[Site "https://www.chess.com"]

[Event "Titled Tuesday Blitz June 13 Early 2023"]
[White "Kvaloy, Aksel Bu"]
[Black "Vakhlamov, Igor L."]
[WhiteFideId "1528815"]
[BlackFideId "24126748"]
[WhiteElo "2318"]
[BlackElo "2407"]
[Result "1-0"]
[Round "10"]
[TimeControl "180+2"]
[Date "2023.06.13"]
[WhiteClock "0:01:40"]
[BlackClock "0:00:12"]
[Board "30"]

1. e4 {[%clk 0:03:00]}  c5 {[%clk 0:02:05]} 2. Nf3 {[%clk 0:02:56]}  e6 {[%clk 0:02:05]} 3. d4 {[%clk 0:02:57]}  cxd4 {[%clk 0:02:05]} 4. Nxd4 {[%clk 0:02:57]}  Nf6 {[%clk 0:02:06]} 5. Nc3 {[%clk 0:02:58]}  Nc6 {[%clk 0:02:06]} 6. Ndb5 {[%clk 0:02:56]}  Bc5 {[%clk 0:02:05]} 7. Bf4 {[%clk 0:02:49]}  O-O {[%clk 0:02:05]} 8. Bc7 {[%clk 0:02:49]}  Qe7 {[%clk 0:02:05]} 9. Bd6 {[%clk 0:02:49]}  Bxd6 {[%clk 0:02:05]} 10. Qxd6 {[%clk 0:02:50]}  Qd8 {[%clk 0:02:05]} 11. Nc7 {[%clk 0:02:49]}  Rb8 {[%clk 0:02:05]} 12. e5 {[%clk 0:02:49]}  Ne8 {[%clk 0:01:59]} 13. Nxe8 {[%clk 0:02:48]}  Rxe8 {[%clk 0:02:00]} 14. Bb5 {[%clk 0:02:46]}  Qe7 {[%clk 0:01:28]} 15. Ne4 {[%clk 0:02:37]}  Qxd6 {[%clk 0:01:24]} 16. Nxd6 {[%clk 0:02:38]}  Rd8 {[%clk 0:01:18]} 17. f4 {[%clk 0:02:36]}  Ne7 {[%clk 0:00:58]} 18. O-O-O {[%clk 0:02:32]}  Nd5 {[%clk 0:00:55]} 19. g3 {[%clk 0:02:30]}  a6 {[%clk 0:00:56]} 20. Be2 {[%clk 0:02:29]}  b5 {[%clk 0:00:54]} 21. Bf3 {[%clk 0:02:29]}  Ne7 {[%clk 0:00:39]} 22. b4 {[%clk 0:02:20]}  f6 {[%clk 0:00:36]} 23. Be4 {[%clk 0:02:13]}  h6 {[%clk 0:00:30]} 24. h4 {[%clk 0:02:11]}  Kf8 {[%clk 0:00:30]} 25. Kb2 {[%clk 0:02:07]}  Rb6 {[%clk 0:00:27]} 26. g4 {[%clk 0:02:00]}  a5 {[%clk 0:00:26]} 27. a3 {[%clk 0:02:00]}  a4 {[%clk 0:00:24]} 28. g5 {[%clk 0:01:57]}  f5 {[%clk 0:00:23]} 29. Bg2 {[%clk 0:01:55]}  Ba6 {[%clk 0:00:20]} 30. gxh6 {[%clk 0:01:52]}  gxh6 {[%clk 0:00:21]} 31. h5 {[%clk 0:01:53]}  Nc8 {[%clk 0:00:19]} 32. Nxc8 {[%clk 0:01:50]}  Bxc8 {[%clk 0:00:20]} 33. Bf3 {[%clk 0:01:45]}  d5 {[%clk 0:00:18]} 34. Rhg1 {[%clk 0:01:44]}  Bd7 {[%clk 0:00:12]} 35. Rg6 {[%clk 0:01:42]}  Rc8 {[%clk 0:00:12]} 36. Rdg1 {[%clk 0:01:40]}  Rbc6 {[%clk 0:00:12]} 37. Rg8+ {[%clk 0:01:40]}  Ke7 {[%clk 0:00:12]} 38. R1g7# {[%clk 0:01:40]} 1-0


[Site "https://www.chess.com"]

[Event "Titled Tuesday Blitz June 13 Early 2023"]
[White "Ahmad, Khagan"]
[Black "Atakhan, Abtin"]
[WhiteFideId "13431552"]
[BlackFideId "22502203"]
[WhiteElo "2209"]
[BlackElo "2008"]
[Result "1-0"]
[Round "10"]
[TimeControl "180+2"]
[Date "2023.06.13"]
[WhiteClock "0:00:23"]
[BlackClock "0:00:01"]
[Board "31"]

1. d4 {[%clk 0:02:54]}  Nf6 {[%clk 0:03:00]} 2. c4 {[%clk 0:02:51]}  g6 {[%clk 0:03:00]} 3. Bg5 {[%clk 0:02:44]}  Bg7 {[%clk 0:03:00]} 4. Nc3 {[%clk 0:02:44]}  d5 {[%clk 0:02:56]} 5. e3 {[%clk 0:02:41]}  c5 {[%clk 0:02:52]} 6. Bxf6 {[%clk 0:02:34]}  Bxf6 {[%clk 0:02:51]} 7. Nxd5 {[%clk 0:02:34]}  Bg7 {[%clk 0:02:49]} 8. Nf3 {[%clk 0:02:25]}  Nc6 {[%clk 0:02:44]} 9. dxc5 {[%clk 0:02:03]}  Bxb2 {[%clk 0:02:43]} 10. Rb1 {[%clk 0:02:03]}  Bg7 {[%clk 0:02:44]} 11. Be2 {[%clk 0:01:57]}  e6 {[%clk 0:02:32]} 12. O-O {[%clk 0:01:53]}  O-O {[%clk 0:02:12]} 13. Nb4 {[%clk 0:01:46]}  Qc7 {[%clk 0:01:56]} 14. Qd6 {[%clk 0:01:37]}  Qxd6 {[%clk 0:01:43]} 15. cxd6 {[%clk 0:01:38]}  Nxb4 {[%clk 0:01:43]} 16. Rxb4 {[%clk 0:01:37]}  b6 {[%clk 0:01:44]} 17. Nd4 {[%clk 0:01:13]}  Rd8 {[%clk 0:01:29]} 18. Bf3 {[%clk 0:01:12]}  Bd7 {[%clk 0:00:51]} 19. Bxa8 {[%clk 0:01:04]}  Rxa8 {[%clk 0:00:52]} 20. Nb5 {[%clk 0:00:49]}  Bf8 {[%clk 0:00:45]} 21. Rd1 {[%clk 0:00:46]}  Kg7 {[%clk 0:00:26]} 22. h4 {[%clk 0:00:39]}  h5 {[%clk 0:00:25]} 23. a4 {[%clk 0:00:35]}  Kf6 {[%clk 0:00:20]} 24. c5 {[%clk 0:00:30]}  bxc5 {[%clk 0:00:20]} 25. Rc4 {[%clk 0:00:30]}  a6 {[%clk 0:00:14]} 26. Nc7 {[%clk 0:00:30]}  Ra7 {[%clk 0:00:09]} 27. Rxc5 {[%clk 0:00:31]}  e5 {[%clk 0:00:08]} 28. a5 {[%clk 0:00:29]}  Bg7 {[%clk 0:00:04]} 29. Rdd5 {[%clk 0:00:27]}  Kf5 {[%clk 0:00:02]} 30. f4 {[%clk 0:00:25]}  f6 {[%clk 0:00:03]} 31. Kf2 {[%clk 0:00:23]}  Rb7 {[%clk 0:00:02]} 32. Kf3 {[%clk 0:00:23]}  Rb2 {[%clk 0:00:01]} 33. e4# {[%clk 0:00:23]} 1-0


[Site "https://www.chess.com"]

[Event "Titled Tuesday Blitz June 13 Early 2023"]
[White "Ashraf, Artin"]
[Black "Parpiev, Isaak"]
[WhiteFideId "22514805"]
[BlackFideId "34281576"]
[WhiteElo "2224"]
[BlackElo "2167"]
[Result "0-1"]
[Round "10"]
[TimeControl "180+2"]
[Date "2023.06.13"]
[WhiteClock "0:00:00"]
[BlackClock "0:00:30"]
[Board "35"]

1. g3 {[%clk 0:02:54]}  Nf6 {[%clk 0:02:59]} 2. Bg2 {[%clk 0:02:54]}  g6 {[%clk 0:02:59]} 3. c4 {[%clk 0:02:38]}  Bg7 {[%clk 0:02:59]} 4. Nc3 {[%clk 0:02:38]}  O-O {[%clk 0:02:59]} 5. d3 {[%clk 0:02:33]}  d6 {[%clk 0:02:58]} 6. Rb1 {[%clk 0:02:29]}  c6 {[%clk 0:02:48]} 7. Nf3 {[%clk 0:01:56]}  a5 {[%clk 0:02:40]} 8. O-O {[%clk 0:01:53]}  e5 {[%clk 0:02:38]} 9. a3 {[%clk 0:01:46]}  Re8 {[%clk 0:02:38]} 10. Ne1 {[%clk 0:01:44]}  Na6 {[%clk 0:02:26]} 11. b4 {[%clk 0:01:42]}  axb4 {[%clk 0:02:27]} 12. axb4 {[%clk 0:01:42]}  d5 {[%clk 0:02:28]} 13. cxd5 {[%clk 0:01:26]}  cxd5 {[%clk 0:02:28]} 14. Bg5 {[%clk 0:01:25]}  Nc7 {[%clk 0:02:18]} 15. b5 {[%clk 0:01:17]}  b6 {[%clk 0:02:08]} 16. Nc2 {[%clk 0:01:11]}  h6 {[%clk 0:01:54]} 17. Bxf6 {[%clk 0:01:07]}  Bxf6 {[%clk 0:01:55]} 18. Nb4 {[%clk 0:01:07]}  e4 {[%clk 0:01:44]} 19. Qc1 {[%clk 0:00:49]}  exd3 {[%clk 0:01:17]} 20. exd3 {[%clk 0:00:36]}  Bb7 {[%clk 0:01:12]} 21. Qc2 {[%clk 0:00:22]}  Bxc3 {[%clk 0:01:02]} 22. Qxc3 {[%clk 0:00:23]}  Nxb5 {[%clk 0:01:03]} 23. Qd2 {[%clk 0:00:22]}  h5 {[%clk 0:00:48]} 24. Nxd5 {[%clk 0:00:18]}  Nd4 {[%clk 0:00:34]} 25. Nf6+ {[%clk 0:00:10]}  Qxf6 {[%clk 0:00:33]} 26. Bxb7 {[%clk 0:00:11]}  Rab8 {[%clk 0:00:33]} 27. Bg2 {[%clk 0:00:11]}  h4 {[%clk 0:00:32]} 28. Rfe1 {[%clk 0:00:08]}  h3 {[%clk 0:00:31]} 29. Bd5 {[%clk 0:00:02]}  Nf3+ {[%clk 0:00:29]} 30. Bxf3 {[%clk 0:00:00]}  Qxf3 {[%clk 0:00:30]} 0-1


[Site "https://www.chess.com"]